Workbook

Sheet Обобщение на бюджета
A2: Актуален бюджет 2005 и бюджет YTD
A4: Код в сч. книга | B4: Наименование на сметка | C4: Действителна | D4: Бюджет | E4: Остатък лв | F4: Остатък лв
A6: 1000 | B6: Реклама | C6: ='Обобщение на месечните разходи'!O6 -> 9,009.00 лв | D6: 100,000.00 лв | E6: =SUM(+D6-C6) -> 90,991.00 лв | F6: =SUM(E6/D6) -> 90.99%
A8: 2000 | B8: Офис оборудване | C8: ='Обобщение на месечните разходи'!O8 -> 0.00 лв | D8: 100,000.00 лв | E8: =SUM(+D8-C8) -> 100,000.00 лв | F8: =SUM(E8/D8) -> 100.00%
A10: 3000 | B10: Принтери | C10: ='Обобщение на месечните разходи'!O10 -> 0.00 лв | D10: 100,000.00 лв | E10: =SUM(+D10-C10) -> 100,000.00 лв | F10: =SUM(E10/D10) -> 100.00%
A12: 4000 | B12: Разходи по сървъри | C12: ='Обобщение на месечните разходи'!O12 -> 0.00 лв | D12: 100,000.00 лв | E12: =SUM(+D12-C12) -> 100,000.00 лв | F12: =SUM(E12/D12) -> 100.00%
A14: 5000 | B14: Материали | C14: ='Обобщение на месечните разходи'!O14 -> 0.00 лв | D14: 50,000.00 лв | E14: =SUM(+D14-C14) -> 50,000.00 лв | F14: =SUM(E14/D14) -> 100.00%
A16: 6000 | B16: Разходи по клиенти | C16: ='Обобщение на месечните разходи'!O16 -> 0.00 лв | D16: 25,000.00 лв | E16: =SUM(+D16-C16) -> 25,000.00 лв | F16: =SUM(E16/D16) -> 100.00%
A18: 7000 | B18: Компютри | C18: ='Обобщение на месечните разходи'!O18 -> 30,000.00 лв | D18: 75,000.00 лв | E18: =SUM(+D18-C18) -> 45,000.00 лв | F18: =SUM(E18/D18) -> 60.00%
A20: 8000 | B20: Медицински план | C20: ='Обобщение на месечните разходи'!O20 -> 0.00 лв | D20: 65,000.00 лв | E20: =SUM(+D20-C20) -> 65,000.00 лв | F20: =SUM(E20/D20) -> 100.00%
A22: 9000 | B22: Строителни разходи | C22: ='Обобщение на месечните разходи'!O22 -> 0.00 лв | D22: 125,000.00 лв | E22: =SUM(+D22-C22) -> 125,000.00 лв | F22: =SUM(E22/D22) -> 100.00%
A24: 10000 | B24: Маркетинг | C24: ='Обобщение на месечните разходи'!O24 -> 0.00 лв | D24: 100,000.00 лв | E24: =SUM(+D24-C24) -> 100,000.00 лв | F24: =SUM(E24/D24) -> 100.00%
A26: 11000 | B26: Разходи за благотворителност | C26: ='Обобщение на месечните разходи'!O26 -> 30,000.00 лв | D26: 250,000.00 лв | E26: =SUM(+D26-C26) -> 220,000.00 лв | F26: =SUM(E26/D26) -> 88.00%
A28: 12000 | B28: Спонсорство | C28: ='Обобщение на месечните разходи'!O28 -> 12,000.00 лв | D28: 50,000.00 лв | E28: =SUM(+D28-C28) -> 38,000.00 лв | F28: =SUM(E28/D28) -> 76.00%
B30: ВСИЧКО | C30: =SUM(C6:C28) -> 81,009.00 лв | D30: =SUM(D6:D28) -> 1,140,000.00 лв | E30: =SUM(E6:E28) -> 1,058,991.00 лв | F30: =SUM(E30/D30) -> 92.89%

Sheet Обобщение на месечните разходи
A2: Месечни разходи за 2005
A4: Код в сч. книга | B4: Наименование на сметка | C4: 2005-01-01 | D4: 2005-02-01 | E4: 2005-03-01 | F4: 2005-04-01 | G4: 2005-05-01 | H4: 2005-06-01 | I4: 2005-07-01 | J4: 2005-08-01 | K4: 2005-09-01 | L4: 2005-10-01 | M4: 2005-11-01 | N4: 2005-12-01 | O4: 2005
A6: 1000 | B6: Реклама | C6: =SUMIF('Разходи за благотворителност и '!$L:$L,"="&($A6&TEXT(C$4,"ммм-гг")),'Разходи за благотворителност и '!$D:$D)+SUMIF('Изброени разходи'!$J:$J,"="&($A6&TEXT(C$4,"ммм-гг")),'Изброени разходи'!$E:$E) -> 750.75 лв | D6: =SUMIF('Разходи за благотворителност и '!$L:$L,"="&($A6&TEXT(D$4,"ммм-гг")),'Разходи за благотворителност и '!$D:$D)+SUMIF('Изброени разходи'!$J:$J,"="&($A6&TEXT(D$4,"ммм-гг")),'Изброени разходи'!$E:$E) -> 750.75 лв | E6: =SUMIF('Разходи за благотворителност и '!$L:$L,"="&($A6&TEXT(E$4,"ммм-гг")),'Разходи за благотворителност и '!$D:$D)+SUMIF('Изброени разходи'!$J:$J,"="&($A6&TEXT(E$4,"ммм-гг")),'Изброени разходи'!$E:$E) -> 750.75 лв | F6: =SUMIF('Разходи за благотворителност и '!$L:$L,"="&($A6&TEXT(F$4,"ммм-гг")),'Разходи за благотворителност и '!$D:$D)+SUMIF('Изброени разходи'!$J:$J,"="&($A6&TEXT(F$4,"ммм-гг")),'Изброени разходи'!$E:$E) -> 750.75 лв | G6: =SUMIF('Разходи за благотворителност и '!$L:$L,"="&($A6&TEXT(G$4,"ммм-гг")),'Разходи за благотворителност и '!$D:$D)+SUMIF('Изброени разходи'!$J:$J,"="&($A6&TEXT(G$4,"ммм-гг")),'Изброени разходи'!$E:$E) -> 750.75 лв | H6: =SUMIF('Разходи за благотворителност и '!$L:$L,"="&($A6&TEXT(H$4,"ммм-гг")),'Разходи за благотворителност и '!$D:$D)+SUMIF('Изброени разходи'!$J:$J,"="&($A6&TEXT(H$4,"ммм-гг")),'Изброени разходи'!$E:$E) -> 750.75 лв | I6: =SUMIF('Разходи за благотворителност и '!$L:$L,"="&($A6&TEXT(I$4,"ммм-гг")),'Разходи за благотворителност и '!$D:$D)+SUMIF('Изброени разходи'!$J:$J,"="&($A6&TEXT(I$4,"ммм-гг")),'Изброени разходи'!$E:$E) -> 750.75 лв | J6: =SUMIF('Разходи за благотворителност и '!$L:$L,"="&($A6&TEXT(J$4,"ммм-гг")),'Разходи за благотворителност и '!$D:$D)+SUMIF('Изброени разходи'!$J:$J,"="&($A6&TEXT(J$4,"ммм-гг")),'Изброени разходи'!$E:$E) -> 750.75 лв | K6: =SUMIF('Разходи за благотворителност и '!$L:$L,"="&($A6&TEXT(K$4,"ммм-гг")),'Разходи за благотворителност и '!$D:$D)+SUMIF('Изброени разходи'!$J:$J,"="&($A6&TEXT(K$4,"ммм-гг")),'Изброени разходи'!$E:$E) -> 750.75 лв | L6: =SUMIF('Разходи за благотворителност и '!$L:$L,"="&($A6&TEXT(L$4,"ммм-гг")),'Разходи за благотворителност и '!$D:$D)+SUMIF('Изброени разходи'!$J:$J,"="&($A6&TEXT(L$4,"ммм-гг")),'Изброени разходи'!$E:$E) -> 750.75 лв | M6: =SUMIF('Разходи за благотворителност и '!$L:$L,"="&($A6&TEXT(M$4,"ммм-гг")),'Разходи за благотворителност и '!$D:$D)+SUMIF('Изброени разходи'!$J:$J,"="&($A6&TEXT(M$4,"ммм-гг")),'Изброени разходи'!$E:$E) -> 750.75 лв | N6: =SUMIF('Разходи за благотворителност и '!$L:$L,"="&($A6&TEXT(N$4,"ммм-гг")),'Разходи за благотворителност и '!$D:$D)+SUMIF('Изброени разходи'!$J:$J,"="&($A6&TEXT(N$4,"ммм-гг")),'Изброени разходи'!$E:$E) -> 750.75 лв | O6: =SUM(C6:N6) -> 9,009.00 лв
A8: 2000 | B8: Офис оборудване | C8: =SUMIF('Разходи за благотворителност и '!$L:$L,"="&($A8&TEXT(C$4,"ммм-гг")),'Разходи за благотворителност и '!$D:$D)+SUMIF('Изброени разходи'!$J:$J,"="&($A8&TEXT(C$4,"ммм-гг")),'Изброени разходи'!$E:$E) -> 0 | D8: =SUMIF('Разходи за благотворителност и '!$L:$L,"="&($A8&TEXT(D$4,"ммм-гг")),'Разходи за благотворителност и '!$D:$D)+SUMIF('Изброени разходи'!$J:$J,"="&($A8&TEXT(D$4,"ммм-гг")),'Изброени разходи'!$E:$E) -> 0 | E8: =SUMIF('Разходи за благотворителност и '!$L:$L,"="&($A8&TEXT(E$4,"ммм-гг")),'Разходи за благотворителност и '!$D:$D)+SUMIF('Изброени разходи'!$J:$J,"="&($A8&TEXT(E$4,"ммм-гг")),'Изброени разходи'!$E:$E) -> 0 | F8: =SUMIF('Разходи за благотворителност и '!$L:$L,"="&($A8&TEXT(F$4,"ммм-гг")),'Разходи за благотворителност и '!$D:$D)+SUMIF('Изброени разходи'!$J:$J,"="&($A8&TEXT(F$4,"ммм-гг")),'Изброени разходи'!$E:$E) -> 0 | G8: =SUMIF('Разходи за благотворителност и '!$L:$L,"="&($A8&TEXT(G$4,"ммм-гг")),'Разходи за благотворителност и '!$D:$D)+SUMIF('Изброени разходи'!$J:$J,"="&($A8&TEXT(G$4,"ммм-гг")),'Изброени разходи'!$E:$E) -> 0 | H8: =SUMIF('Разходи за благотворителност и '!$L:$L,"="&($A8&TEXT(H$4,"ммм-гг")),'Разходи за благотворителност и '!$D:$D)+SUMIF('Изброени разходи'!$J:$J,"="&($A8&TEXT(H$4,"ммм-гг")),'Изброени разходи'!$E:$E) -> 0 | I8: =SUMIF('Разходи за благотворителност и '!$L:$L,"="&($A8&TEXT(I$4,"ммм-гг")),'Разходи за благотворителност и '!$D:$D)+SUMIF('Изброени разходи'!$J:$J,"="&($A8&TEXT(I$4,"ммм-гг")),'Изброени разходи'!$E:$E) -> 0 | J8: =SUMIF('Разходи за благотворителност и '!$L:$L,"="&($A8&TEXT(J$4,"ммм-гг")),'Разходи за благотворителност и '!$D:$D)+SUMIF('Изброени разходи'!$J:$J,"="&($A8&TEXT(J$4,"ммм-гг")),'Изброени разходи'!$E:$E) -> 0 | K8: =SUMIF('Разходи за благотворителност и '!$L:$L,"="&($A8&TEXT(K$4,"ммм-гг")),'Разходи за благотворителност и '!$D:$D)+SUMIF('Изброени разходи'!$J:$J,"="&($A8&TEXT(K$4,"ммм-гг")),'Изброени разходи'!$E:$E) -> 0 | L8: =SUMIF('Разходи за благотворителност и '!$L:$L,"="&($A8&TEXT(L$4,"ммм-гг")),'Разходи за благотворителност и '!$D:$D)+SUMIF('Изброени разходи'!$J:$J,"="&($A8&TEXT(L$4,"ммм-гг")),'Изброени разходи'!$E:$E) -> 0 | M8: =SUMIF('Разходи за благотворителност и '!$L:$L,"="&($A8&TEXT(M$4,"ммм-гг")),'Разходи за благотворителност и '!$D:$D)+SUMIF('Изброени разходи'!$J:$J,"="&($A8&TEXT(M$4,"ммм-гг")),'Изброени разходи'!$E:$E) -> 0 | N8: =SUMIF('Разходи за благотворителност и '!$L:$L,"="&($A8&TEXT(N$4,"ммм-гг")),'Разходи за благотворителност и '!$D:$D)+SUMIF('Изброени разходи'!$J:$J,"="&($A8&TEXT(N$4,"ммм-гг")),'Изброени разходи'!$E:$E) -> 0 | O8: =SUM(C8:N8) -> 0
A10: 3000 | B10: Принтери | C10: =SUMIF('Разходи за благотворителност и '!$L:$L,"="&($A10&TEXT(C$4,"ммм-гг")),'Разходи за благотворителност и '!$D:$D)+SUMIF('Изброени разходи'!$J:$J,"="&($A10&TEXT(C$4,"ммм-гг")),'Изброени разходи'!$E:$E) -> 0 | D10: =SUMIF('Разходи за благотворителност и '!$L:$L,"="&($A10&TEXT(D$4,"ммм-гг")),'Разходи за благотворителност и '!$D:$D)+SUMIF('Изброени разходи'!$J:$J,"="&($A10&TEXT(D$4,"ммм-гг")),'Изброени разходи'!$E:$E) -> 0 | E10: =SUMIF('Разходи за благотворителност и '!$L:$L,"="&($A10&TEXT(E$4,"ммм-гг")),'Разходи за благотворителност и '!$D:$D)+SUMIF('Изброени разходи'!$J:$J,"="&($A10&TEXT(E$4,"ммм-гг")),'Изброени разходи'!$E:$E) -> 0 | F10: =SUMIF('Разходи за благотворителност и '!$L:$L,"="&($A10&TEXT(F$4,"ммм-гг")),'Разходи за благотворителност и '!$D:$D)+SUMIF('Изброени разходи'!$J:$J,"="&($A10&TEXT(F$4,"ммм-гг")),'Изброени разходи'!$E:$E) -> 0 | G10: =SUMIF('Разходи за благотворителност и '!$L:$L,"="&($A10&TEXT(G$4,"ммм-гг")),'Разходи за благотворителност и '!$D:$D)+SUMIF('Изброени разходи'!$J:$J,"="&($A10&TEXT(G$4,"ммм-гг")),'Изброени разходи'!$E:$E) -> 0 | H10: =SUMIF('Разходи за благотворителност и '!$L:$L,"="&($A10&TEXT(H$4,"ммм-гг")),'Разходи за благотворителност и '!$D:$D)+SUMIF('Изброени разходи'!$J:$J,"="&($A10&TEXT(H$4,"ммм-гг")),'Изброени разходи'!$E:$E) -> 0 | I10: =SUMIF('Разходи за благотворителност и '!$L:$L,"="&($A10&TEXT(I$4,"ммм-гг")),'Разходи за благотворителност и '!$D:$D)+SUMIF('Изброени разходи'!$J:$J,"="&($A10&TEXT(I$4,"ммм-гг")),'Изброени разходи'!$E:$E) -> 0 | J10: =SUMIF('Разходи за благотворителност и '!$L:$L,"="&($A10&TEXT(J$4,"ммм-гг")),'Разходи за благотворителност и '!$D:$D)+SUMIF('Изброени разходи'!$J:$J,"="&($A10&TEXT(J$4,"ммм-гг")),'Изброени разходи'!$E:$E) -> 0 | K10: =SUMIF('Разходи за благотворителност и '!$L:$L,"="&($A10&TEXT(K$4,"ммм-гг")),'Разходи за благотворителност и '!$D:$D)+SUMIF('Изброени разходи'!$J:$J,"="&($A10&TEXT(K$4,"ммм-гг")),'Изброени разходи'!$E:$E) -> 0 | L10: =SUMIF('Разходи за благотворителност и '!$L:$L,"="&($A10&TEXT(L$4,"ммм-гг")),'Разходи за благотворителност и '!$D:$D)+SUMIF('Изброени разходи'!$J:$J,"="&($A10&TEXT(L$4,"ммм-гг")),'Изброени разходи'!$E:$E) -> 0 | M10: =SUMIF('Разходи за благотворителност и '!$L:$L,"="&($A10&TEXT(M$4,"ммм-гг")),'Разходи за благотворителност и '!$D:$D)+SUMIF('Изброени разходи'!$J:$J,"="&($A10&TEXT(M$4,"ммм-гг")),'Изброени разходи'!$E:$E) -> 0 | N10: =SUMIF('Разходи за благотворителност и '!$L:$L,"="&($A10&TEXT(N$4,"ммм-гг")),'Разходи за благотворителност и '!$D:$D)+SUMIF('Изброени разходи'!$J:$J,"="&($A10&TEXT(N$4,"ммм-гг")),'Изброени разходи'!$E:$E) -> 0 | O10: =SUM(C10:N10) -> 0
A12: 4000 | B12: Разходи по сървъри | C12: =SUMIF('Разходи за благотворителност и '!$L:$L,"="&($A12&TEXT(C$4,"ммм-гг")),'Разходи за благотворителност и '!$D:$D)+SUMIF('Изброени разходи'!$J:$J,"="&($A12&TEXT(C$4,"ммм-гг")),'Изброени разходи'!$E:$E) -> 0 | D12: =SUMIF('Разходи за благотворителност и '!$L:$L,"="&($A12&TEXT(D$4,"ммм-гг")),'Разходи за благотворителност и '!$D:$D)+SUMIF('Изброени разходи'!$J:$J,"="&($A12&TEXT(D$4,"ммм-гг")),'Изброени разходи'!$E:$E) -> 0 | E12: =SUMIF('Разходи за благотворителност и '!$L:$L,"="&($A12&TEXT(E$4,"ммм-гг")),'Разходи за благотворителност и '!$D:$D)+SUMIF('Изброени разходи'!$J:$J,"="&($A12&TEXT(E$4,"ммм-гг")),'Изброени разходи'!$E:$E) -> 0 | F12: =SUMIF('Разходи за благотворителност и '!$L:$L,"="&($A12&TEXT(F$4,"ммм-гг")),'Разходи за благотворителност и '!$D:$D)+SUMIF('Изброени разходи'!$J:$J,"="&($A12&TEXT(F$4,"ммм-гг")),'Изброени разходи'!$E:$E) -> 0 | G12: =SUMIF('Разходи за благотворителност и '!$L:$L,"="&($A12&TEXT(G$4,"ммм-гг")),'Разходи за благотворителност и '!$D:$D)+SUMIF('Изброени разходи'!$J:$J,"="&($A12&TEXT(G$4,"ммм-гг")),'Изброени разходи'!$E:$E) -> 0 | H12: =SUMIF('Разходи за благотворителност и '!$L:$L,"="&($A12&TEXT(H$4,"ммм-гг")),'Разходи за благотворителност и '!$D:$D)+SUMIF('Изброени разходи'!$J:$J,"="&($A12&TEXT(H$4,"ммм-гг")),'Изброени разходи'!$E:$E) -> 0 | I12: =SUMIF('Разходи за благотворителност и '!$L:$L,"="&($A12&TEXT(I$4,"ммм-гг")),'Разходи за благотворителност и '!$D:$D)+SUMIF('Изброени разходи'!$J:$J,"="&($A12&TEXT(I$4,"ммм-гг")),'Изброени разходи'!$E:$E) -> 0 | J12: =SUMIF('Разходи за благотворителност и '!$L:$L,"="&($A12&TEXT(J$4,"ммм-гг")),'Разходи за благотворителност и '!$D:$D)+SUMIF('Изброени разходи'!$J:$J,"="&($A12&TEXT(J$4,"ммм-гг")),'Изброени разходи'!$E:$E) -> 0 | K12: =SUMIF('Разходи за благотворителност и '!$L:$L,"="&($A12&TEXT(K$4,"ммм-гг")),'Разходи за благотворителност и '!$D:$D)+SUMIF('Изброени разходи'!$J:$J,"="&($A12&TEXT(K$4,"ммм-гг")),'Изброени разходи'!$E:$E) -> 0 | L12: =SUMIF('Разходи за благотворителност и '!$L:$L,"="&($A12&TEXT(L$4,"ммм-гг")),'Разходи за благотворителност и '!$D:$D)+SUMIF('Изброени разходи'!$J:$J,"="&($A12&TEXT(L$4,"ммм-гг")),'Изброени разходи'!$E:$E) -> 0 | M12: =SUMIF('Разходи за благотворителност и '!$L:$L,"="&($A12&TEXT(M$4,"ммм-гг")),'Разходи за благотворителност и '!$D:$D)+SUMIF('Изброени разходи'!$J:$J,"="&($A12&TEXT(M$4,"ммм-гг")),'Изброени разходи'!$E:$E) -> 0 | N12: =SUMIF('Разходи за благотворителност и '!$L:$L,"="&($A12&TEXT(N$4,"ммм-гг")),'Разходи за благотворителност и '!$D:$D)+SUMIF('Изброени разходи'!$J:$J,"="&($A12&TEXT(N$4,"ммм-гг")),'Изброени разходи'!$E:$E) -> 0 | O12: =SUM(C12:N12) -> 0
A14: 5000 | B14: Материали | C14: =SUMIF('Разходи за благотворителност и '!$L:$L,"="&($A14&TEXT(C$4,"ммм-гг")),'Разходи за благотворителност и '!$D:$D)+SUMIF('Изброени разходи'!$J:$J,"="&($A14&TEXT(C$4,"ммм-гг")),'Изброени разходи'!$E:$E) -> 0 | D14: =SUMIF('Разходи за благотворителност и '!$L:$L,"="&($A14&TEXT(D$4,"ммм-гг")),'Разходи за благотворителност и '!$D:$D)+SUMIF('Изброени разходи'!$J:$J,"="&($A14&TEXT(D$4,"ммм-гг")),'Изброени разходи'!$E:$E) -> 0 | E14: =SUMIF('Разходи за благотворителност и '!$L:$L,"="&($A14&TEXT(E$4,"ммм-гг")),'Разходи за благотворителност и '!$D:$D)+SUMIF('Изброени разходи'!$J:$J,"="&($A14&TEXT(E$4,"ммм-гг")),'Изброени разходи'!$E:$E) -> 0 | F14: =SUMIF('Разходи за благотворителност и '!$L:$L,"="&($A14&TEXT(F$4,"ммм-гг")),'Разходи за благотворителност и '!$D:$D)+SUMIF('Изброени разходи'!$J:$J,"="&($A14&TEXT(F$4,"ммм-гг")),'Изброени разходи'!$E:$E) -> 0 | G14: =SUMIF('Разходи за благотворителност и '!$L:$L,"="&($A14&TEXT(G$4,"ммм-гг")),'Разходи за благотворителност и '!$D:$D)+SUMIF('Изброени разходи'!$J:$J,"="&($A14&TEXT(G$4,"ммм-гг")),'Изброени разходи'!$E:$E) -> 0 | H14: =SUMIF('Разходи за благотворителност и '!$L:$L,"="&($A14&TEXT(H$4,"ммм-гг")),'Разходи за благотворителност и '!$D:$D)+SUMIF('Изброени разходи'!$J:$J,"="&($A14&TEXT(H$4,"ммм-гг")),'Изброени разходи'!$E:$E) -> 0 | I14: =SUMIF('Разходи за благотворителност и '!$L:$L,"="&($A14&TEXT(I$4,"ммм-гг")),'Разходи за благотворителност и '!$D:$D)+SUMIF('Изброени разходи'!$J:$J,"="&($A14&TEXT(I$4,"ммм-гг")),'Изброени разходи'!$E:$E) -> 0 | J14: =SUMIF('Разходи за благотворителност и '!$L:$L,"="&($A14&TEXT(J$4,"ммм-гг")),'Разходи за благотворителност и '!$D:$D)+SUMIF('Изброени разходи'!$J:$J,"="&($A14&TEXT(J$4,"ммм-гг")),'Изброени разходи'!$E:$E) -> 0 | K14: =SUMIF('Разходи за благотворителност и '!$L:$L,"="&($A14&TEXT(K$4,"ммм-гг")),'Разходи за благотворителност и '!$D:$D)+SUMIF('Изброени разходи'!$J:$J,"="&($A14&TEXT(K$4,"ммм-гг")),'Изброени разходи'!$E:$E) -> 0 | L14: =SUMIF('Разходи за благотворителност и '!$L:$L,"="&($A14&TEXT(L$4,"ммм-гг")),'Разходи за благотворителност и '!$D:$D)+SUMIF('Изброени разходи'!$J:$J,"="&($A14&TEXT(L$4,"ммм-гг")),'Изброени разходи'!$E:$E) -> 0 | M14: =SUMIF('Разходи за благотворителност и '!$L:$L,"="&($A14&TEXT(M$4,"ммм-гг")),'Разходи за благотворителност и '!$D:$D)+SUMIF('Изброени разходи'!$J:$J,"="&($A14&TEXT(M$4,"ммм-гг")),'Изброени разходи'!$E:$E) -> 0 | N14: =SUMIF('Разходи за благотворителност и '!$L:$L,"="&($A14&TEXT(N$4,"ммм-гг")),'Разходи за благотворителност и '!$D:$D)+SUMIF('Изброени разходи'!$J:$J,"="&($A14&TEXT(N$4,"ммм-гг")),'Изброени разходи'!$E:$E) -> 0 | O14: =SUM(C14:N14) -> 0
A16: 6000 | B16: Разходи по клиенти | C16: =SUMIF('Разходи за благотворителност и '!$L:$L,"="&($A16&TEXT(C$4,"ммм-гг")),'Разходи за благотворителност и '!$D:$D)+SUMIF('Изброени разходи'!$J:$J,"="&($A16&TEXT(C$4,"ммм-гг")),'Изброени разходи'!$E:$E) -> 0 | D16: =SUMIF('Разходи за благотворителност и '!$L:$L,"="&($A16&TEXT(D$4,"ммм-гг")),'Разходи за благотворителност и '!$D:$D)+SUMIF('Изброени разходи'!$J:$J,"="&($A16&TEXT(D$4,"ммм-гг")),'Изброени разходи'!$E:$E) -> 0 | E16: =SUMIF('Разходи за благотворителност и '!$L:$L,"="&($A16&TEXT(E$4,"ммм-гг")),'Разходи за благотворителност и '!$D:$D)+SUMIF('Изброени разходи'!$J:$J,"="&($A16&TEXT(E$4,"ммм-гг")),'Изброени разходи'!$E:$E) -> 0 | F16: =SUMIF('Разходи за благотворителност и '!$L:$L,"="&($A16&TEXT(F$4,"ммм-гг")),'Разходи за благотворителност и '!$D:$D)+SUMIF('Изброени разходи'!$J:$J,"="&($A16&TEXT(F$4,"ммм-гг")),'Изброени разходи'!$E:$E) -> 0 | G16: =SUMIF('Разходи за благотворителност и '!$L:$L,"="&($A16&TEXT(G$4,"ммм-гг")),'Разходи за благотворителност и '!$D:$D)+SUMIF('Изброени разходи'!$J:$J,"="&($A16&TEXT(G$4,"ммм-гг")),'Изброени разходи'!$E:$E) -> 0 | H16: =SUMIF('Разходи за благотворителност и '!$L:$L,"="&($A16&TEXT(H$4,"ммм-гг")),'Разходи за благотворителност и '!$D:$D)+SUMIF('Изброени разходи'!$J:$J,"="&($A16&TEXT(H$4,"ммм-гг")),'Изброени разходи'!$E:$E) -> 0 | I16: =SUMIF('Разходи за благотворителност и '!$L:$L,"="&($A16&TEXT(I$4,"ммм-гг")),'Разходи за благотворителност и '!$D:$D)+SUMIF('Изброени разходи'!$J:$J,"="&($A16&TEXT(I$4,"ммм-гг")),'Изброени разходи'!$E:$E) -> 0 | J16: =SUMIF('Разходи за благотворителност и '!$L:$L,"="&($A16&TEXT(J$4,"ммм-гг")),'Разходи за благотворителност и '!$D:$D)+SUMIF('Изброени разходи'!$J:$J,"="&($A16&TEXT(J$4,"ммм-гг")),'Изброени разходи'!$E:$E) -> 0 | K16: =SUMIF('Разходи за благотворителност и '!$L:$L,"="&($A16&TEXT(K$4,"ммм-гг")),'Разходи за благотворителност и '!$D:$D)+SUMIF('Изброени разходи'!$J:$J,"="&($A16&TEXT(K$4,"ммм-гг")),'Изброени разходи'!$E:$E) -> 0 | L16: =SUMIF('Разходи за благотворителност и '!$L:$L,"="&($A16&TEXT(L$4,"ммм-гг")),'Разходи за благотворителност и '!$D:$D)+SUMIF('Изброени разходи'!$J:$J,"="&($A16&TEXT(L$4,"ммм-гг")),'Изброени разходи'!$E:$E) -> 0 | M16: =SUMIF('Разходи за благотворителност и '!$L:$L,"="&($A16&TEXT(M$4,"ммм-гг")),'Разходи за благотворителност и '!$D:$D)+SUMIF('Изброени разходи'!$J:$J,"="&($A16&TEXT(M$4,"ммм-гг")),'Изброени разходи'!$E:$E) -> 0 | N16: =SUMIF('Разходи за благотворителност и '!$L:$L,"="&($A16&TEXT(N$4,"ммм-гг")),'Разходи за благотворителност и '!$D:$D)+SUMIF('Изброени разходи'!$J:$J,"="&($A16&TEXT(N$4,"ммм-гг")),'Изброени разходи'!$E:$E) -> 0 | O16: =SUM(C16:N16) -> 0
A18: 7000 | B18: Компютри | C18: =SUMIF('Разходи за благотворителност и '!$L:$L,"="&($A18&TEXT(C$4,"ммм-гг")),'Разходи за благотворителност и '!$D:$D)+SUMIF('Изброени разходи'!$J:$J,"="&($A18&TEXT(C$4,"ммм-гг")),'Изброени разходи'!$E:$E) -> 2,500.00 лв | D18: =SUMIF('Разходи за благотворителност и '!$L:$L,"="&($A18&TEXT(D$4,"ммм-гг")),'Разходи за благотворителност и '!$D:$D)+SUMIF('Изброени разходи'!$J:$J,"="&($A18&TEXT(D$4,"ммм-гг")),'Изброени разходи'!$E:$E) -> 2,500.00 лв | E18: =SUMIF('Разходи за благотворителност и '!$L:$L,"="&($A18&TEXT(E$4,"ммм-гг")),'Разходи за благотворителност и '!$D:$D)+SUMIF('Изброени разходи'!$J:$J,"="&($A18&TEXT(E$4,"ммм-гг")),'Изброени разходи'!$E:$E) -> 2,500.00 лв | F18: =SUMIF('Разходи за благотворителност и '!$L:$L,"="&($A18&TEXT(F$4,"ммм-гг")),'Разходи за благотворителност и '!$D:$D)+SUMIF('Изброени разходи'!$J:$J,"="&($A18&TEXT(F$4,"ммм-гг")),'Изброени разходи'!$E:$E) -> 2,500.00 лв | G18: =SUMIF('Разходи за благотворителност и '!$L:$L,"="&($A18&TEXT(G$4,"ммм-гг")),'Разходи за благотворителност и '!$D:$D)+SUMIF('Изброени разходи'!$J:$J,"="&($A18&TEXT(G$4,"ммм-гг")),'Изброени разходи'!$E:$E) -> 2,500.00 лв | H18: =SUMIF('Разходи за благотворителност и '!$L:$L,"="&($A18&TEXT(H$4,"ммм-гг")),'Разходи за благотворителност и '!$D:$D)+SUMIF('Изброени разходи'!$J:$J,"="&($A18&TEXT(H$4,"ммм-гг")),'Изброени разходи'!$E:$E) -> 2,500.00 лв | I18: =SUMIF('Разходи за благотворителност и '!$L:$L,"="&($A18&TEXT(I$4,"ммм-гг")),'Разходи за благотворителност и '!$D:$D)+SUMIF('Изброени разходи'!$J:$J,"="&($A18&TEXT(I$4,"ммм-гг")),'Изброени разходи'!$E:$E) -> 2,500.00 лв | J18: =SUMIF('Разходи за благотворителност и '!$L:$L,"="&($A18&TEXT(J$4,"ммм-гг")),'Разходи за благотворителност и '!$D:$D)+SUMIF('Изброени разходи'!$J:$J,"="&($A18&TEXT(J$4,"ммм-гг")),'Изброени разходи'!$E:$E) -> 2,500.00 лв | K18: =SUMIF('Разходи за благотворителност и '!$L:$L,"="&($A18&TEXT(K$4,"ммм-гг")),'Разходи за благотворителност и '!$D:$D)+SUMIF('Изброени разходи'!$J:$J,"="&($A18&TEXT(K$4,"ммм-гг")),'Изброени разходи'!$E:$E) -> 2,500.00 лв | L18: =SUMIF('Разходи за благотворителност и '!$L:$L,"="&($A18&TEXT(L$4,"ммм-гг")),'Разходи за благотворителност и '!$D:$D)+SUMIF('Изброени разходи'!$J:$J,"="&($A18&TEXT(L$4,"ммм-гг")),'Изброени разходи'!$E:$E) -> 2,500.00 лв | M18: =SUMIF('Разходи за благотворителност и '!$L:$L,"="&($A18&TEXT(M$4,"ммм-гг")),'Разходи за благотворителност и '!$D:$D)+SUMIF('Изброени разходи'!$J:$J,"="&($A18&TEXT(M$4,"ммм-гг")),'Изброени разходи'!$E:$E) -> 2,500.00 лв | N18: =SUMIF('Разходи за благотворителност и '!$L:$L,"="&($A18&TEXT(N$4,"ммм-гг")),'Разходи за благотворителност и '!$D:$D)+SUMIF('Изброени разходи'!$J:$J,"="&($A18&TEXT(N$4,"ммм-гг")),'Изброени разходи'!$E:$E) -> 2,500.00 лв | O18: =SUM(C18:N18) -> 30,000.00 лв
A20: 8000 | B20: Медицински план | C20: =SUMIF('Разходи за благотворителност и '!$L:$L,"="&($A20&TEXT(C$4,"ммм-гг")),'Разходи за благотворителност и '!$D:$D)+SUMIF('Изброени разходи'!$J:$J,"="&($A20&TEXT(C$4,"ммм-гг")),'Изброени разходи'!$E:$E) -> 0 | D20: =SUMIF('Разходи за благотворителност и '!$L:$L,"="&($A20&TEXT(D$4,"ммм-гг")),'Разходи за благотворителност и '!$D:$D)+SUMIF('Изброени разходи'!$J:$J,"="&($A20&TEXT(D$4,"ммм-гг")),'Изброени разходи'!$E:$E) -> 0 | E20: =SUMIF('Разходи за благотворителност и '!$L:$L,"="&($A20&TEXT(E$4,"ммм-гг")),'Разходи за благотворителност и '!$D:$D)+SUMIF('Изброени разходи'!$J:$J,"="&($A20&TEXT(E$4,"ммм-гг")),'Изброени разходи'!$E:$E) -> 0 | F20: =SUMIF('Разходи за благотворителност и '!$L:$L,"="&($A20&TEXT(F$4,"ммм-гг")),'Разходи за благотворителност и '!$D:$D)+SUMIF('Изброени разходи'!$J:$J,"="&($A20&TEXT(F$4,"ммм-гг")),'Изброени разходи'!$E:$E) -> 0 | G20: =SUMIF('Разходи за благотворителност и '!$L:$L,"="&($A20&TEXT(G$4,"ммм-гг")),'Разходи за благотворителност и '!$D:$D)+SUMIF('Изброени разходи'!$J:$J,"="&($A20&TEXT(G$4,"ммм-гг")),'Изброени разходи'!$E:$E) -> 0 | H20: =SUMIF('Разходи за благотворителност и '!$L:$L,"="&($A20&TEXT(H$4,"ммм-гг")),'Разходи за благотворителност и '!$D:$D)+SUMIF('Изброени разходи'!$J:$J,"="&($A20&TEXT(H$4,"ммм-гг")),'Изброени разходи'!$E:$E) -> 0 | I20: =SUMIF('Разходи за благотворителност и '!$L:$L,"="&($A20&TEXT(I$4,"ммм-гг")),'Разходи за благотворителност и '!$D:$D)+SUMIF('Изброени разходи'!$J:$J,"="&($A20&TEXT(I$4,"ммм-гг")),'Изброени разходи'!$E:$E) -> 0 | J20: =SUMIF('Разходи за благотворителност и '!$L:$L,"="&($A20&TEXT(J$4,"ммм-гг")),'Разходи за благотворителност и '!$D:$D)+SUMIF('Изброени разходи'!$J:$J,"="&($A20&TEXT(J$4,"ммм-гг")),'Изброени разходи'!$E:$E) -> 0 | K20: =SUMIF('Разходи за благотворителност и '!$L:$L,"="&($A20&TEXT(K$4,"ммм-гг")),'Разходи за благотворителност и '!$D:$D)+SUMIF('Изброени разходи'!$J:$J,"="&($A20&TEXT(K$4,"ммм-гг")),'Изброени разходи'!$E:$E) -> 0 | L20: =SUMIF('Разходи за благотворителност и '!$L:$L,"="&($A20&TEXT(L$4,"ммм-гг")),'Разходи за благотворителност и '!$D:$D)+SUMIF('Изброени разходи'!$J:$J,"="&($A20&TEXT(L$4,"ммм-гг")),'Изброени разходи'!$E:$E) -> 0 | M20: =SUMIF('Разходи за благотворителност и '!$L:$L,"="&($A20&TEXT(M$4,"ммм-гг")),'Разходи за благотворителност и '!$D:$D)+SUMIF('Изброени разходи'!$J:$J,"="&($A20&TEXT(M$4,"ммм-гг")),'Изброени разходи'!$E:$E) -> 0 | N20: =SUMIF('Разходи за благотворителност и '!$L:$L,"="&($A20&TEXT(N$4,"ммм-гг")),'Разходи за благотворителност и '!$D:$D)+SUMIF('Изброени разходи'!$J:$J,"="&($A20&TEXT(N$4,"ммм-гг")),'Изброени разходи'!$E:$E) -> 0 | O20: =SUM(C20:N20) -> 0
A22: 9000 | B22: Строителни разходи | C22: =SUMIF('Разходи за благотворителност и '!$L:$L,"="&($A22&TEXT(C$4,"ммм-гг")),'Разходи за благотворителност и '!$D:$D)+SUMIF('Изброени разходи'!$J:$J,"="&($A22&TEXT(C$4,"ммм-гг")),'Изброени разходи'!$E:$E) -> 0 | D22: =SUMIF('Разходи за благотворителност и '!$L:$L,"="&($A22&TEXT(D$4,"ммм-гг")),'Разходи за благотворителност и '!$D:$D)+SUMIF('Изброени разходи'!$J:$J,"="&($A22&TEXT(D$4,"ммм-гг")),'Изброени разходи'!$E:$E) -> 0 | E22: =SUMIF('Разходи за благотворителност и '!$L:$L,"="&($A22&TEXT(E$4,"ммм-гг")),'Разходи за благотворителност и '!$D:$D)+SUMIF('Изброени разходи'!$J:$J,"="&($A22&TEXT(E$4,"ммм-гг")),'Изброени разходи'!$E:$E) -> 0 | F22: =SUMIF('Разходи за благотворителност и '!$L:$L,"="&($A22&TEXT(F$4,"ммм-гг")),'Разходи за благотворителност и '!$D:$D)+SUMIF('Изброени разходи'!$J:$J,"="&($A22&TEXT(F$4,"ммм-гг")),'Изброени разходи'!$E:$E) -> 0 | G22: =SUMIF('Разходи за благотворителност и '!$L:$L,"="&($A22&TEXT(G$4,"ммм-гг")),'Разходи за благотворителност и '!$D:$D)+SUMIF('Изброени разходи'!$J:$J,"="&($A22&TEXT(G$4,"ммм-гг")),'Изброени разходи'!$E:$E) -> 0 | H22: =SUMIF('Разходи за благотворителност и '!$L:$L,"="&($A22&TEXT(H$4,"ммм-гг")),'Разходи за благотворителност и '!$D:$D)+SUMIF('Изброени разходи'!$J:$J,"="&($A22&TEXT(H$4,"ммм-гг")),'Изброени разходи'!$E:$E) -> 0 | I22: =SUMIF('Разходи за благотворителност и '!$L:$L,"="&($A22&TEXT(I$4,"ммм-гг")),'Разходи за благотворителност и '!$D:$D)+SUMIF('Изброени разходи'!$J:$J,"="&($A22&TEXT(I$4,"ммм-гг")),'Изброени разходи'!$E:$E) -> 0 | J22: =SUMIF('Разходи за благотворителност и '!$L:$L,"="&($A22&TEXT(J$4,"ммм-гг")),'Разходи за благотворителност и '!$D:$D)+SUMIF('Изброени разходи'!$J:$J,"="&($A22&TEXT(J$4,"ммм-гг")),'Изброени разходи'!$E:$E) -> 0 | K22: =SUMIF('Разходи за благотворителност и '!$L:$L,"="&($A22&TEXT(K$4,"ммм-гг")),'Разходи за благотворителност и '!$D:$D)+SUMIF('Изброени разходи'!$J:$J,"="&($A22&TEXT(K$4,"ммм-гг")),'Изброени разходи'!$E:$E) -> 0 | L22: =SUMIF('Разходи за благотворителност и '!$L:$L,"="&($A22&TEXT(L$4,"ммм-гг")),'Разходи за благотворителност и '!$D:$D)+SUMIF('Изброени разходи'!$J:$J,"="&($A22&TEXT(L$4,"ммм-гг")),'Изброени разходи'!$E:$E) -> 0 | M22: =SUMIF('Разходи за благотворителност и '!$L:$L,"="&($A22&TEXT(M$4,"ммм-гг")),'Разходи за благотворителност и '!$D:$D)+SUMIF('Изброени разходи'!$J:$J,"="&($A22&TEXT(M$4,"ммм-гг")),'Изброени разходи'!$E:$E) -> 0 | N22: =SUMIF('Разходи за благотворителност и '!$L:$L,"="&($A22&TEXT(N$4,"ммм-гг")),'Разходи за благотворителност и '!$D:$D)+SUMIF('Изброени разходи'!$J:$J,"="&($A22&TEXT(N$4,"ммм-гг")),'Изброени разходи'!$E:$E) -> 0 | O22: =SUM(C22:N22) -> 0
A24: 10000 | B24: Маркетинг | C24: =SUMIF('Разходи за благотворителност и '!$L:$L,"="&($A24&TEXT(C$4,"ммм-гг")),'Разходи за благотворителност и '!$D:$D)+SUMIF('Изброени разходи'!$J:$J,"="&($A24&TEXT(C$4,"ммм-гг")),'Изброени разходи'!$E:$E) -> 0 | D24: =SUMIF('Разходи за благотворителност и '!$L:$L,"="&($A24&TEXT(D$4,"ммм-гг")),'Разходи за благотворителност и '!$D:$D)+SUMIF('Изброени разходи'!$J:$J,"="&($A24&TEXT(D$4,"ммм-гг")),'Изброени разходи'!$E:$E) -> 0 | E24: =SUMIF('Разходи за благотворителност и '!$L:$L,"="&($A24&TEXT(E$4,"ммм-гг")),'Разходи за благотворителност и '!$D:$D)+SUMIF('Изброени разходи'!$J:$J,"="&($A24&TEXT(E$4,"ммм-гг")),'Изброени разходи'!$E:$E) -> 0 | F24: =SUMIF('Разходи за благотворителност и '!$L:$L,"="&($A24&TEXT(F$4,"ммм-гг")),'Разходи за благотворителност и '!$D:$D)+SUMIF('Изброени разходи'!$J:$J,"="&($A24&TEXT(F$4,"ммм-гг")),'Изброени разходи'!$E:$E) -> 0 | G24: =SUMIF('Разходи за благотворителност и '!$L:$L,"="&($A24&TEXT(G$4,"ммм-гг")),'Разходи за благотворителност и '!$D:$D)+SUMIF('Изброени разходи'!$J:$J,"="&($A24&TEXT(G$4,"ммм-гг")),'Изброени разходи'!$E:$E) -> 0 | H24: =SUMIF('Разходи за благотворителност и '!$L:$L,"="&($A24&TEXT(H$4,"ммм-гг")),'Разходи за благотворителност и '!$D:$D)+SUMIF('Изброени разходи'!$J:$J,"="&($A24&TEXT(H$4,"ммм-гг")),'Изброени разходи'!$E:$E) -> 0 | I24: =SUMIF('Разходи за благотворителност и '!$L:$L,"="&($A24&TEXT(I$4,"ммм-гг")),'Разходи за благотворителност и '!$D:$D)+SUMIF('Изброени разходи'!$J:$J,"="&($A24&TEXT(I$4,"ммм-гг")),'Изброени разходи'!$E:$E) -> 0 | J24: =SUMIF('Разходи за благотворителност и '!$L:$L,"="&($A24&TEXT(J$4,"ммм-гг")),'Разходи за благотворителност и '!$D:$D)+SUMIF('Изброени разходи'!$J:$J,"="&($A24&TEXT(J$4,"ммм-гг")),'Изброени разходи'!$E:$E) -> 0 | K24: =SUMIF('Разходи за благотворителност и '!$L:$L,"="&($A24&TEXT(K$4,"ммм-гг")),'Разходи за благотворителност и '!$D:$D)+SUMIF('Изброени разходи'!$J:$J,"="&($A24&TEXT(K$4,"ммм-гг")),'Изброени разходи'!$E:$E) -> 0 | L24: =SUMIF('Разходи за благотворителност и '!$L:$L,"="&($A24&TEXT(L$4,"ммм-гг")),'Разходи за благотворителност и '!$D:$D)+SUMIF('Изброени разходи'!$J:$J,"="&($A24&TEXT(L$4,"ммм-гг")),'Изброени разходи'!$E:$E) -> 0 | M24: =SUMIF('Разходи за благотворителност и '!$L:$L,"="&($A24&TEXT(M$4,"ммм-гг")),'Разходи за благотворителност и '!$D:$D)+SUMIF('Изброени разходи'!$J:$J,"="&($A24&TEXT(M$4,"ммм-гг")),'Изброени разходи'!$E:$E) -> 0 | N24: =SUMIF('Разходи за благотворителност и '!$L:$L,"="&($A24&TEXT(N$4,"ммм-гг")),'Разходи за благотворителност и '!$D:$D)+SUMIF('Изброени разходи'!$J:$J,"="&($A24&TEXT(N$4,"ммм-гг")),'Изброени разходи'!$E:$E) -> 0 | O24: =SUM(C24:N24) -> 0
A26: 11000 | B26: Разходи за благотворителност | C26: =SUMIF('Разходи за благотворителност и '!$L:$L,"="&($A26&TEXT(C$4,"ммм-гг")),'Разходи за благотворителност и '!$D:$D)+SUMIF('Изброени разходи'!$J:$J,"="&($A26&TEXT(C$4,"ммм-гг")),'Изброени разходи'!$E:$E) -> 2,500.00 лв | D26: =SUMIF('Разходи за благотворителност и '!$L:$L,"="&($A26&TEXT(D$4,"ммм-гг")),'Разходи за благотворителност и '!$D:$D)+SUMIF('Изброени разходи'!$J:$J,"="&($A26&TEXT(D$4,"ммм-гг")),'Изброени разходи'!$E:$E) -> 2,500.00 лв | E26: =SUMIF('Разходи за благотворителност и '!$L:$L,"="&($A26&TEXT(E$4,"ммм-гг")),'Разходи за благотворителност и '!$D:$D)+SUMIF('Изброени разходи'!$J:$J,"="&($A26&TEXT(E$4,"ммм-гг")),'Изброени разходи'!$E:$E) -> 2,500.00 лв | F26: =SUMIF('Разходи за благотворителност и '!$L:$L,"="&($A26&TEXT(F$4,"ммм-гг")),'Разходи за благотворителност и '!$D:$D)+SUMIF('Изброени разходи'!$J:$J,"="&($A26&TEXT(F$4,"ммм-гг")),'Изброени разходи'!$E:$E) -> 2,500.00 лв | G26: =SUMIF('Разходи за благотворителност и '!$L:$L,"="&($A26&TEXT(G$4,"ммм-гг")),'Разходи за благотворителност и '!$D:$D)+SUMIF('Изброени разходи'!$J:$J,"="&($A26&TEXT(G$4,"ммм-гг")),'Изброени разходи'!$E:$E) -> 2,500.00 лв | H26: =SUMIF('Разходи за благотворителност и '!$L:$L,"="&($A26&TEXT(H$4,"ммм-гг")),'Разходи за благотворителност и '!$D:$D)+SUMIF('Изброени разходи'!$J:$J,"="&($A26&TEXT(H$4,"ммм-гг")),'Изброени разходи'!$E:$E) -> 2,500.00 лв | I26: =SUMIF('Разходи за благотворителност и '!$L:$L,"="&($A26&TEXT(I$4,"ммм-гг")),'Разходи за благотворителност и '!$D:$D)+SUMIF('Изброени разходи'!$J:$J,"="&($A26&TEXT(I$4,"ммм-гг")),'Изброени разходи'!$E:$E) -> 2,500.00 лв | J26: =SUMIF('Разходи за благотворителност и '!$L:$L,"="&($A26&TEXT(J$4,"ммм-гг")),'Разходи за благотворителност и '!$D:$D)+SUMIF('Изброени разходи'!$J:$J,"="&($A26&TEXT(J$4,"ммм-гг")),'Изброени разходи'!$E:$E) -> 2,500.00 лв | K26: =SUMIF('Разходи за благотворителност и '!$L:$L,"="&($A26&TEXT(K$4,"ммм-гг")),'Разходи за благотворителност и '!$D:$D)+SUMIF('Изброени разходи'!$J:$J,"="&($A26&TEXT(K$4,"ммм-гг")),'Изброени разходи'!$E:$E) -> 2,500.00 лв | L26: =SUMIF('Разходи за благотворителност и '!$L:$L,"="&($A26&TEXT(L$4,"ммм-гг")),'Разходи за благотворителност и '!$D:$D)+SUMIF('Изброени разходи'!$J:$J,"="&($A26&TEXT(L$4,"ммм-гг")),'Изброени разходи'!$E:$E) -> 2,500.00 лв | M26: =SUMIF('Разходи за благотворителност и '!$L:$L,"="&($A26&TEXT(M$4,"ммм-гг")),'Разходи за благотворителност и '!$D:$D)+SUMIF('Изброени разходи'!$J:$J,"="&($A26&TEXT(M$4,"ммм-гг")),'Изброени разходи'!$E:$E) -> 2,500.00 лв | N26: =SUMIF('Разходи за благотворителност и '!$L:$L,"="&($A26&TEXT(N$4,"ммм-гг")),'Разходи за благотворителност и '!$D:$D)+SUMIF('Изброени разходи'!$J:$J,"="&($A26&TEXT(N$4,"ммм-гг")),'Изброени разходи'!$E:$E) -> 2,500.00 лв | O26: =SUM(C26:N26) -> 30,000.00 лв
A28: 12000 | B28: Спонсорство | C28: =SUMIF('Разходи за благотворителност и '!$L:$L,"="&($A28&TEXT(C$4,"ммм-гг")),'Разходи за благотворителност и '!$D:$D)+SUMIF('Изброени разходи'!$J:$J,"="&($A28&TEXT(C$4,"ммм-гг")),'Изброени разходи'!$E:$E) -> 1,000.00 лв | D28: =SUMIF('Разходи за благотворителност и '!$L:$L,"="&($A28&TEXT(D$4,"ммм-гг")),'Разходи за благотворителност и '!$D:$D)+SUMIF('Изброени разходи'!$J:$J,"="&($A28&TEXT(D$4,"ммм-гг")),'Изброени разходи'!$E:$E) -> 1,000.00 лв | E28: =SUMIF('Разходи за благотворителност и '!$L:$L,"="&($A28&TEXT(E$4,"ммм-гг")),'Разходи за благотворителност и '!$D:$D)+SUMIF('Изброени разходи'!$J:$J,"="&($A28&TEXT(E$4,"ммм-гг")),'Изброени разходи'!$E:$E) -> 1,000.00 лв | F28: =SUMIF('Разходи за благотворителност и '!$L:$L,"="&($A28&TEXT(F$4,"ммм-гг")),'Разходи за благотворителност и '!$D:$D)+SUMIF('Изброени разходи'!$J:$J,"="&($A28&TEXT(F$4,"ммм-гг")),'Изброени разходи'!$E:$E) -> 1,000.00 лв | G28: =SUMIF('Разходи за благотворителност и '!$L:$L,"="&($A28&TEXT(G$4,"ммм-гг")),'Разходи за благотворителност и '!$D:$D)+SUMIF('Изброени разходи'!$J:$J,"="&($A28&TEXT(G$4,"ммм-гг")),'Изброени разходи'!$E:$E) -> 1,000.00 лв | H28: =SUMIF('Разходи за благотворителност и '!$L:$L,"="&($A28&TEXT(H$4,"ммм-гг")),'Разходи за благотворителност и '!$D:$D)+SUMIF('Изброени разходи'!$J:$J,"="&($A28&TEXT(H$4,"ммм-гг")),'Изброени разходи'!$E:$E) -> 1,000.00 лв | I28: =SUMIF('Разходи за благотворителност и '!$L:$L,"="&($A28&TEXT(I$4,"ммм-гг")),'Разходи за благотворителност и '!$D:$D)+SUMIF('Изброени разходи'!$J:$J,"="&($A28&TEXT(I$4,"ммм-гг")),'Изброени разходи'!$E:$E) -> 1,000.00 лв | J28: =SUMIF('Разходи за благотворителност и '!$L:$L,"="&($A28&TEXT(J$4,"ммм-гг")),'Разходи за благотворителност и '!$D:$D)+SUMIF('Изброени разходи'!$J:$J,"="&($A28&TEXT(J$4,"ммм-гг")),'Изброени разходи'!$E:$E) -> 1,000.00 лв | K28: =SUMIF('Разходи за благотворителност и '!$L:$L,"="&($A28&TEXT(K$4,"ммм-гг")),'Разходи за благотворителност и '!$D:$D)+SUMIF('Изброени разходи'!$J:$J,"="&($A28&TEXT(K$4,"ммм-гг")),'Изброени разходи'!$E:$E) -> 1,000.00 лв | L28: =SUMIF('Разходи за благотворителност и '!$L:$L,"="&($A28&TEXT(L$4,"ммм-гг")),'Разходи за благотворителност и '!$D:$D)+SUMIF('Изброени разходи'!$J:$J,"="&($A28&TEXT(L$4,"ммм-гг")),'Изброени разходи'!$E:$E) -> 1,000.00 лв | M28: =SUMIF('Разходи за благотворителност и '!$L:$L,"="&($A28&TEXT(M$4,"ммм-гг")),'Разходи за благотворителност и '!$D:$D)+SUMIF('Изброени разходи'!$J:$J,"="&($A28&TEXT(M$4,"ммм-гг")),'Изброени разходи'!$E:$E) -> 1,000.00 лв | N28: =SUMIF('Разходи за благотворителност и '!$L:$L,"="&($A28&TEXT(N$4,"ммм-гг")),'Разходи за благотворителност и '!$D:$D)+SUMIF('Изброени разходи'!$J:$J,"="&($A28&TEXT(N$4,"ммм-гг")),'Изброени разходи'!$E:$E) -> 1,000.00 лв | O28: =SUM(C28:N28) -> 12,000.00 лв
B30: Всичко | C30: =SUM(C6:C28) -> 6,750.75 лв | D30: 6,750.75 лв | E30: 6,750.75 лв | F30: 6,750.75 лв | G30: 6,750.75 лв | H30: 6,750.75 лв | I30: 6,750.75 лв | J30: 6,750.75 лв | K30: 6,750.75 лв | L30: 6,750.75 лв | M30: 6,750.75 лв | N30: 6,750.75 лв | O30: 81,009.00 лв

Sheet Изброени разходи
A1: Код в сч. книга | B1: Дата на фактурата | C1: Фактура # | D1: Заявено от | E1: Сума | F1: Платец | G1: Предназначение | H1: Начин на разпространение | I1: Дата на файла | J1: Ключово поле
A2: 1000 | B2: 2005-01-01 | C2: 100 | D2: Минко Минков | E2: 750.75 лв | F2: Consolidated Messenger | G2: Програма за поща | H2: "Поща" | I2: 2005-01-04 | J2: =A2&TEXT(B2,"ммм-гг") -> 1000ммм-гг
A3: 7000 | B3: 2005-01-15 | C3: 101 | D3: Андрей Лазаров | E3: 2,500.00 лв | F3: A. Datum Corporation | G3: 2 настолни компютъра | H3: Кредит | I3: 2005-01-20 | J3: 7000ммм-гг
J4: ммм-гг
J5: ммм-гг
J6: ммм-гг
J7: ммм-гг
J8: ммм-гг
J9: ммм-гг
J10: ммм-гг
J11: ммм-гг
J12: ммм-гг
J13: ммм-гг
J14: ммм-гг
J15: ммм-гг
J16: ммм-гг
J17: ммм-гг
J18: ммм-гг
J19: ммм-гг
J20: ммм-гг
J21: ммм-гг
J22: ммм-гг
J23: ммм-гг
J24: ммм-гг
J25: ммм-гг
J26: ммм-гг
J27: ммм-гг
J28: ммм-гг
J29: ммм-гг
J30: ммм-гг
J31: ммм-гг
J32: ммм-гг
J33: ммм-гг
J34: =A34&TEXT(B34,"ммм-гг") -> ммм-гг
J35: ммм-гг
J36: ммм-гг
J37: ммм-гг
J38: ммм-гг
J39: ммм-гг
J40: ммм-гг
J41: ммм-гг
J42: ммм-гг
J43: ммм-гг
J44: ммм-гг
J45: ммм-гг
J46: ммм-гг
J47: ммм-гг
J48: ммм-гг
J49: ммм-гг
J50: ммм-гг
J51: ммм-гг
J52: ммм-гг
J53: ммм-гг
J54: ммм-гг
J55: ммм-гг
J56: ммм-гг
J57: ммм-гг
J58: ммм-гг
J59: ммм-гг
J60: ммм-гг
J61: ммм-гг
J62: ммм-гг
J63: ммм-гг
J64: ммм-гг
J65: ммм-гг
J66: =A66&TEXT(B66,"ммм-гг") -> ммм-гг
J67: ммм-гг
J68: ммм-гг
J69: ммм-гг
J70: ммм-гг
J71: ммм-гг
J72: ммм-гг
J73: ммм-гг
J74: ммм-гг
J75: ммм-гг
J76: ммм-гг
J77: ммм-гг
J78: ммм-гг
J79: ммм-гг
J80: ммм-гг
J81: ммм-гг
J82: ммм-гг
J83: ммм-гг
J84: ммм-гг
J85: ммм-гг
J86: ммм-гг
J87: ммм-гг
J88: ммм-гг
J89: ммм-гг
J90: ммм-гг
J91: ммм-гг
J92: ммм-гг
J93: ммм-гг
J94: ммм-гг
J95: ммм-гг
J96: ммм-гг
J97: ммм-гг
J98: =A98&TEXT(B98,"ммм-гг") -> ммм-гг
J99: ммм-гг
J100: ммм-гг
J101: ммм-гг
J102: ммм-гг
J103: ммм-гг

Sheet Разходи за благотворителност и
A1: Код в сч. книга | B1: Начало на заявка за чек | C1: Заявено от | D1: Сума | E1: Сума за предишна година | F1: Платец | G1: Използвано за | H1: Проверено от | I1: Категория | J1: Начин на разпространение | K1: Дата на файла | L1: Ключово поле
A2: 12000 | B2: 2005-01-20 | C2: Таня Манева | D2: 1,000.00 лв | E2: 0 | F2: Училище за изящни изкуства | G2: Стипендии | H2: Ким Ралс | I2: Изкуства | J2: Чек | K2: 2005-01-30 | L2: =A2&TEXT(B2,"ммм-гг") -> 12000ммм-гг
A3: 11000 | B3: 2005-02-15 | C3: Таня Манева | D3: 2,500.00 лв | E3: 0 | F3: Играчки | G3: Общност | H3: Антония Петрова | I3: Общност | J3: Чек | K3: 2005-03-01 | L3: 11000ммм-гг
L4: ммм-гг
L5: ммм-гг
L6: ммм-гг
L7: ммм-гг
L8: ммм-гг
L9: ммм-гг
L10: ммм-гг
L11: ммм-гг
L12: ммм-гг
L13: ммм-гг
L14: ммм-гг
L15: ммм-гг
L16: ммм-гг
L17: ммм-гг
L18: ммм-гг
L19: ммм-гг
L20: ммм-гг
L21: ммм-гг
L22: ммм-гг
L23: ммм-гг
L24: ммм-гг
L25: ммм-гг
L26: ммм-гг
L27: ммм-гг
L28: ммм-гг
L29: ммм-гг
L30: ммм-гг
L31: ммм-гг
L32: ммм-гг
L33: ммм-гг
L34: =A34&TEXT(B34,"ммм-гг") -> ммм-гг
L35: ммм-гг
L36: ммм-гг
L37: ммм-гг
L38: ммм-гг
L39: ммм-гг
L40: ммм-гг
L41: ммм-гг
L42: ммм-гг
L43: ммм-гг
L44: ммм-гг
L45: ммм-гг
L46: ммм-гг
L47: ммм-гг
L48: ммм-гг
L49: ммм-гг
L50: ммм-гг
L51: ммм-гг
L52: ммм-гг
L53: ммм-гг
L54: ммм-гг
L55: ммм-гг
L56: ммм-гг
L57: ммм-гг
L58: ммм-гг
L59: ммм-гг
L60: ммм-гг
L61: ммм-гг
L62: ммм-гг
L63: ммм-гг
L64: ммм-гг
L65: ммм-гг
L66: =A66&TEXT(B66,"ммм-гг") -> ммм-гг
L67: ммм-гг
L68: ммм-гг
L69: ммм-гг
L70: ммм-гг
L71: ммм-гг
L72: ммм-гг
L73: ммм-гг
L74: ммм-гг
L75: ммм-гг
L76: ммм-гг
L77: ммм-гг
L78: ммм-гг
L79: ммм-гг
L80: ммм-гг
L81: ммм-гг
L82: ммм-гг
L83: ммм-гг
L84: ммм-гг
L85: ммм-гг
L86: ммм-гг
L87: ммм-гг
L88: ммм-гг
L89: ммм-гг
L90: ммм-гг
L91: ммм-гг
L92: ммм-гг
L93: ммм-гг
L94: ммм-гг
L95: ммм-гг
L96: ммм-гг
L97: ммм-гг
L98: =A98&TEXT(B98,"ммм-гг") -> ммм-гг
L99: ммм-гг
L100: ммм-гг
L101: ммм-гг
L102: ммм-гг
L103: ммм-гг
L104: ммм-гг
L105: ммм-гг
L106: ммм-гг
L107: ммм-гг
L108: ммм-гг
L109: ммм-гг
